bitfinex-derivatives/quotes_SOLF0:USTF0_20260211
["timestamp","ask_amount","ask_price","bid_price","bid_amount"]
[1770771824436,5.38013934,83.549,83.502,14.70469276]
[1770771824643,5.38013934,83.549,83.508,10.7842]
[1770771824839,5.38013934,83.549,83.51,2.93040283]
[1770771827640,5.38013934,83.549,83.481,149.68]
[1770771827641,5.38287645,83.563,83.52,2.93040283]
[1770771828152,5.38287645,83.563,83.517,10.7831]
[1770771828352,5.43089988,83.561,83.51,13.71450283]
[1770771829341,5.43089988,83.557,83.502,10.785]
[1770771829745,5.43089988,83.557,83.51,2.93040283]
[1770771830353,5.43089988,83.557,83.49,95.5]
[1770771830354,5.43089988,83.557,83.52,2.93040283]
[1770771831149,5.43089988,83.557,83.51,2.93040283]
[1770771832855,5.43089988,83.557,83.52,10.7828]
[1770771833854,5.43089988,83.557,83.51,2.93040283]
[1770771833855,5.43089988,83.557,83.513,10.7837]
[1770771836456,5.40580397,83.555,83.513,10.7837]
[1770771839460,5.40580397,83.555,83.479,47.0]
[1770771839461,5.39242856,83.579,83.53,2.93559734]
[1770771839657,5.37596079,83.569,83.52,2.93559734]
[1770771840962,5.37596079,83.569,83.522,10.7825]
[1770771842062,5.37596079,83.569,83.53,2.93559734]
[1770771842665,5.47236108,83.581,83.53,2.93559734]
[1770771842863,5.47236108,83.581,83.54,2.93559734]
[1770771843864,5.47236108,83.581,83.545,10.7796]
[1770771844569,5.47683485,83.595,83.552,10.7786]
[1770771845765,5.47683485,83.595,83.55,2.93559734]
[1770771846768,5.47683485,83.595,83.562,10.7774]
[1770771847272,5.48941232,83.609,83.562,10.7774]
[1770771848268,5.48718873,83.606,83.562,10.7774]
[1770771848769,5.48718873,83.599,83.562,10.7774]
[1770771854778,10.7698,83.621,83.58,2.93559734]
[1770771855480,5.52124059,83.626,83.581,10.7749]
[1770771858583,5.54645621,83.619,83.57,2.93559734]
[1770771859780,5.54645621,83.619,83.578,10.7752]
[1770771861985,5.54645621,83.619,83.581,10.7749]
[1770771864887,5.50615406,83.633,83.591,10.7735]
[1770771865592,5.50615406,83.633,83.581,10.7749]
[1770771865783,5.50615406,83.633,83.58,2.93559734]
[1770771866889,5.50839735,83.627,83.586,10.7742]
[1770771875989,5.50489069,83.625,83.586,10.7742]
[1770771876390,5.50489069,83.625,83.59,2.93559734]
[1770771876593,5.50489069,83.625,83.586,10.7742]
[1770771878096,10.7684,83.632,83.586,10.7742]
[1770771878388,5.50391822,83.638,83.6,2.93559734]
[1770771878590,5.50391822,83.638,83.564,21.5541]
[1770771878591,5.50391822,83.638,83.59,2.93559734]
[1770771879091,5.50391822,83.636,83.596,10.7729]
[1770771881493,21.5272,83.67,83.573,95.46]
[1770771881494,5.4976735,83.633,83.58,2.93559734]
[1770771882788,5.52111158,83.626,83.589,10.7739]
[1770771883193,5.52111158,83.624,83.583,10.7747]
[1770771883692,2.93559734,83.62,83.57,2.93559734]
[1770771883894,5.44916479,83.608,83.563,10.7771]
[1770771884095,5.44916479,83.599,83.563,10.7771]
[1770771885601,5.44916479,83.598,83.555,10.7782]
[1770771887808,5.44916479,83.598,83.55,2.93559734]
[1770771889806,5.45233887,83.596,83.55,2.93559734]
[1770771890010,5.45233887,83.596,83.551,10.7787]
[1770771891514,5.45237693,83.607,83.57,2.93559734]
[1770771891707,5.45237693,83.629,83.57,2.93559734]
[1770771892015,5.45237693,83.629,83.551,14.70469276]
[1770771892016,5.45237693,83.629,83.58,2.93559734]
[1770771892414,5.45237693,83.629,83.59,2.93559734]
[1770771893808,5.45237693,83.629,83.581,10.7748]
[1770771894109,5.45237693,83.629,83.59,2.93559734]
[1770771894613,5.45237693,83.629,83.581,10.7748]
[1770771894614,5.47619287,83.626,83.581,10.7748]
[1770771895505,5.47619287,83.617,83.572,10.776]
[1770771895707,21.5311,83.655,83.572,10.776]
[1770771895708,5.47619287,83.609,83.572,10.776]
[1770771896812,5.47619287,83.609,83.563,10.7772]
[1770771897711,5.46584816,83.606,83.563,10.7772]
[1770771898716,5.46584816,83.604,83.556,10.7781]
[1770771900923,5.49118116,83.595,83.547,155.74]
[1770771901416,5.49118116,83.595,83.55,2.93228649]
[1770771902310,5.49118116,83.595,83.547,155.74]
[1770771902511,5.48726494,83.585,83.538,10.7804]
[1770771903723,5.47717435,83.582,83.538,10.7804]
[1770771904423,5.47717435,83.576,83.53,10.7814]
[1770771904629,5.47717435,83.559,83.503,14.70469276]
[1770771904818,5.47717435,83.549,83.5,2.93228649]
[1770771905019,5.47717435,83.549,83.491,14.70469276]
[1770771905325,5.47717435,83.549,83.49,2.93228649]
[1770771905526,5.47717435,83.544,83.493,10.7863]
[1770771906824,5.52600556,83.542,83.493,10.7863]
[1770771907718,10.7804,83.539,83.493,10.7863]
[1770771908025,10.7804,83.539,83.462,22.20767471]
[1770771908026,5.56184127,83.529,83.47,2.93228649]
[1770771909223,5.56184127,83.512,83.466,95.48]
[1770771910926,5.56184127,83.512,83.47,2.93228649]
[1770771916930,5.56184127,83.512,83.466,95.48]
[1770771917429,5.41387284,83.508,83.46,2.93228649]
[1770771917819,5.41206267,83.498,83.445,128.84]
[1770771918228,5.41206267,83.498,83.441,10.7929]
[1770771918728,2.93228649,83.5,83.441,10.7929]
[1770771918729,5.41206267,83.491,83.441,10.7929]
[1770771919119,5.41206267,83.491,83.447,10.7921]
[1770771919828,5.41206267,83.491,83.451,10.7916]
[1770771920729,5.41206267,83.491,83.45,2.93228649]
[1770771921921,5.41206267,83.491,83.453,10.7914]
[1770771922325,5.3481006,83.508,83.47,2.93228649]
[1770771923130,5.3481006,83.521,83.471,10.7891]
[1770771924829,5.3436905,83.519,83.471,10.7891]
[1770771926229,21.5565,83.556,83.455,95.56]
[1770771926230,5.35733901,83.509,83.464,10.79]
[1770771926430,5.35733901,83.499,83.45,2.93228649]
[1770771926631,5.35733901,83.498,83.44,2.93228649]
[1770771927630,10.786,83.496,83.446,10.7923]
[1770771927931,5.30573795,83.489,83.43,2.93228649]
[1770771928531,5.30573795,83.487,83.437,10.7934]
[1770771928727,5.30573795,83.487,83.44,2.93228649]
[1770771929134,5.30573795,83.487,83.437,10.7934]
[1770771929729,5.3158025,83.485,83.437,10.7934]
[1770771930736,5.3158025,83.482,83.437,10.7934]
[1770771931136,5.3158025,83.469,83.41,2.93228649]
[1770771931333,95.56,83.526,83.41,2.93228649]
[1770771931334,5.3158025,83.458,83.41,2.93228649]
[1770771932830,5.3158025,83.458,83.411,10.7969]
[1770771933841,95.58,83.496,83.42,2.93228649]
[1770771933842,10.7898,83.466,83.42,2.93228649]
[1770771935642,16.08804336,83.466,83.42,2.93228649]
[1770771935847,16.08804336,83.466,83.418,10.7959]
[1770771935848,5.30291767,83.463,83.418,10.7959]
[1770771938144,5.30291767,83.463,83.421,10.7956]
[1770771938949,10.7891,83.472,83.396,114.44]
[1770771938950,5.28620178,83.459,83.41,2.93228649]
[1770771939646,5.28620178,83.456,83.411,10.7968]
[1770771942251,5.29972607,83.469,83.42,13.72788649]
[1770771946252,5.2975315,83.467,83.427,10.7948]
[1770771948350,5.30232089,83.464,83.427,10.7948]
[1770771948553,5.30232089,83.464,83.42,2.93228649]
[1770771948854,5.30232089,83.464,83.41,2.93228649]
[1770771949646,2.93228649,83.47,83.41,2.93228649]
[1770771949647,5.30232089,83.462,83.41,2.93228649]
[1770771950254,5.27942517,83.459,83.4,2.93228649]
[1770771950855,5.2791732,83.456,83.412,10.7967]
[1770771952052,95.62,83.488,83.412,10.7967]
[1770771952053,5.30418532,83.454,83.412,10.7967]
[1770771952758,5.30418532,83.467,83.422,10.7955]
[1770771953761,5.3771642,83.464,83.422,10.7955]
[1770771954657,5.3771642,83.456,83.412,10.7967]
[1770771956256,16.15177038,83.454,83.412,10.7967]
[1770771956465,5.36037038,83.453,83.412,10.7967]
[1770771957858,5.36542939,83.445,83.403,10.7979]
[1770771958768,5.36542939,83.443,83.403,10.7979]
[1770771959471,5.36542939,83.429,83.37,2.94358291]
[1770771959672,5.36542939,83.419,83.36,2.94358291]
[1770771959871,5.36542939,83.419,83.351,14.70469276]
[1770771959872,5.36542939,83.419,83.37,2.94358291]
[1770771960368,5.36542939,83.419,83.351,95.64]
[1770771960563,5.35756447,83.406,83.36,2.94358291]
[1770771960871,5.35756447,83.406,83.36,2.94581923]
[1770771962175,5.35756447,83.406,83.36,13.74921923]
[1770771962572,5.33665723,83.404,83.36,13.74921923]
[1770771963374,5.33665723,83.395,83.35,2.94581923]
[1770771964168,5.33665723,83.395,83.34,2.94581923]
[1770771964574,5.31202027,83.388,83.34,2.94581923]
[1770771964771,5.31202027,83.369,83.322,110.4]
[1770771964971,5.31202027,83.369,83.32,2.94581923]
[1770771965171,5.31202027,83.369,83.321,10.8085]
[1770771965674,5.31202027,83.383,83.34,2.94581923]
[1770771965861,2.94581923,83.4,83.35,2.94581923]
[1770771965862,5.29832146,83.397,83.35,2.94581923]
[1770771966064,5.29832146,83.41,83.36,2.94581923]
[1770771966370,5.29832146,83.399,83.36,2.94581923]
[1770771966569,5.29832146,83.399,83.343,10.8057]
[1770771966570,5.29832146,83.419,83.37,2.94581923]
[1770771966770,2.94581923,83.42,83.37,2.94581923]
[1770771966771,5.29832146,83.415,83.37,2.94581923]
[1770771966965,5.29832146,83.415,83.36,2.94581923]
[1770771967276,5.29832146,83.41,83.36,2.94581923]
[1770771967968,5.29832146,83.41,83.346,95.66]
[1770771967969,5.33206895,83.398,83.352,10.8045]
[1770771968177,5.33206895,83.398,83.35,2.94581923]
[1770771968871,10.799,83.395,83.342,10.8058]
[1770771969074,35.99,83.444,83.342,10.8058]
[1770771969075,5.33206895,83.389,83.342,10.8058]
[1770771969275,5.33206895,83.389,83.35,2.94581923]
[1770771970268,5.29567764,83.409,83.35,2.94581923]
[1770771970670,5.29567764,83.404,83.351,10.8046]
[1770771973469,5.28307142,83.392,83.34,13.75181923]
[1770771974871,16.0291338,83.389,83.34,13.75181923]
[1770771975276,5.2293338,83.402,83.36,2.94581923]
[1770771975972,5.22705142,83.399,83.354,10.8043]
[1770771977872,5.22705142,83.399,83.36,2.94581923]
[1770771979375,5.22705142,83.399,83.354,10.8043]
[1770771980974,5.22705142,83.399,83.36,2.94581923]
[1770771981372,5.22705142,83.399,83.354,10.8043]
[1770771981574,5.22705142,83.399,83.333,95.7]
[1770771981575,5.28305928,83.397,83.35,2.94581923]
[1770771981878,5.28305928,83.397,83.36,2.94581923]
[1770771985579,5.28305928,83.397,83.351,10.8046]
[1770771986683,5.28305928,83.397,83.361,10.8033]
[1770771987579,5.29187371,83.409,83.367,10.8025]
[1770771992178,5.43268801,83.407,83.367,10.8025]
[1770771996883,5.38477211,83.405,83.367,10.8025]
[1770771998889,5.41630011,83.403,83.367,10.8025]
[1770771999689,5.41630011,83.398,83.358,10.8037]
[1770772000093,10.7987,83.397,83.358,10.8037]
[1770772000291,5.41200781,83.396,83.358,10.8037]
[1770772002690,5.40998687,83.409,83.368,10.8024]
[1770772002891,5.40998687,83.409,83.36,2.94581923]
[1770772003689,5.42442031,83.406,83.362,10.8032]
[1770772007397,5.44560391,83.401,83.36,14.70469276]
[1770772007596,5.44560391,83.401,83.355,14.70469276]
[1770772008395,5.44560391,83.401,83.354,14.70469276]
[1770772008696,5.44560391,83.401,83.36,10.8034]
[1770772015399,5.44560391,83.401,83.364,14.70469276]
[1770772016397,5.44560391,83.401,83.365,10.8028]
[1770772030222,5.52024409,83.397,83.356,14.70469276]
[1770772031720,10.7979,83.404,83.361,25.50809276]
[1770772032517,16.30556415,83.404,83.361,10.8034]
[1770772032721,5.50766415,83.403,83.361,25.50809276]
[1770772032917,5.50766415,83.4,83.361,10.8034]
[1770772038122,5.50766415,83.4,83.367,10.8026]
[1770772038320,5.45079627,83.41,83.367,10.8026]
[1770772039426,5.45079627,83.409,83.367,10.8026]
[1770772039823,5.49420076,83.408,83.367,10.8026]
[1770772040825,16.29349934,83.393,83.366,14.70469276]
[1770772041015,16.29349934,83.393,83.35,10.8048]
[1770772041016,2.94641189,83.39,83.343,14.70469276]
[1770772041221,5.49419934,83.392,83.342,14.70469276]
[1770772041516,5.49419934,83.392,83.321,47.0]
[1770772041517,5.49419934,83.392,83.35,17.65110465]
[1770772042322,5.49419934,83.392,83.351,14.70469276]
[1770772042730,5.49419934,83.392,83.354,10.8042]
[1770772043527,5.48265817,83.387,83.34,17.65110465]
[1770772043732,5.48265817,83.387,83.331,14.70469276]
[1770772044129,5.48265817,83.387,83.33,2.94641189]
[1770772044130,5.48265817,83.387,83.33,17.65110465]
[1770772044530,5.48265817,83.387,83.33,2.94641189]
[1770772044730,5.38488959,83.38,83.338,10.8063]
[1770772044931,5.38488959,83.379,83.329,14.70469276]
[1770772045132,5.38488959,83.379,83.324,14.70469276]
[1770772045331,5.38488959,83.379,83.322,14.70469276]
[1770772045728,2.94641189,83.37,83.322,14.70469276]
[1770772045933,5.36245222,83.369,83.32,2.94641189]
[1770772046324,10.8028,83.366,83.321,10.8085]
[1770772046529,5.36245222,83.369,83.32,2.94641189]
[1770772047033,5.36245222,83.38,83.333,10.807]
[1770772048631,10.8002,83.386,83.34,13.75241189]
[1770772050637,10.799,83.395,83.35,13.75121189]
[1770772051239,5.45941244,83.394,83.35,13.75121189]
[1770772052540,5.45941244,83.394,83.35,10.8048]
[1770772054942,5.45941244,83.394,83.362,10.8032]
[1770772056643,5.45941244,83.394,83.352,14.70469276]
[1770772056644,5.45941244,83.394,83.368,10.8025]
[1770772057746,5.47156468,83.406,83.368,10.8025]
[1770772059641,16.26919446,83.405,83.368,10.8025]
[1770772060537,5.47572733,83.404,83.368,10.8025]
[1770772062048,5.46390825,83.415,83.375,10.8015]
[1770772067550,5.50119406,83.425,83.384,10.8004]
[1770772073656,11.22960805,83.464,83.38,2.94641189]
[1770772073657,5.51104008,83.436,83.38,2.94641189]
[1770772073851,5.51104008,83.436,83.39,2.94641189]
[1770772074755,5.50419183,83.446,83.4,2.94641189]
[1770772075553,5.50419183,83.446,83.404,10.7977]
[1770772075756,5.50419183,83.46,83.41,2.94641189]
[1770772076853,5.50419183,83.46,83.417,10.7961]
[1770772077048,5.51280378,83.459,83.417,10.7961]
[1770772080257,5.5327496,83.457,83.41,2.94236117]
[1770772080457,6.41,83.464,83.39,101.62236117]
[1770772080458,5.5327496,83.449,83.39,101.62236117]
[1770772080858,5.5327496,83.449,83.4,2.94336838]
[1770772081170,5.5327496,83.437,83.391,10.7994]
[1770772081358,5.5327496,83.429,83.359,14.70469276]
[1770772081655,5.5327496,83.429,83.37,2.94336838]
[1770772082762,5.44957466,83.42,83.379,10.801]
[1770772086156,5.44957466,83.42,83.38,2.94336838]
[1770772091263,5.44957466,83.42,83.379,10.801]
[1770772093063,5.50825168,83.414,83.37,2.94336838]
[1770772093268,5.50825168,83.414,83.36,2.94336838]
[1770772094762,5.50832231,83.404,83.362,10.8032]
[1770772098368,5.50832231,83.404,83.357,47.0]
[1770772098369,5.50368809,83.399,83.357,47.0]
[1770772098976,5.50368809,83.399,83.352,10.8045]
[1770772099679,5.50368809,83.389,83.346,10.8053]
[1770772100172,5.50368809,83.389,83.35,2.94336838]
[1770772100374,5.50368809,83.389,83.352,10.8045]
[1770772100676,5.50368809,83.389,83.34,490.07643118]
[1770772101076,5.50368809,83.389,83.341,14.70469276]
[1770772101278,5.50368809,83.389,83.34,490.07643118]
[1770772101876,5.50368809,83.389,83.345,10.8054]
[1770772105887,5.50368809,83.389,83.34,475.37173842]
[1770772105888,5.50368809,83.389,83.351,10.8046]
[1770772106184,6.42,83.398,83.35,2.94336838]
[1770772107187,11.95327818,83.398,83.35,2.94336838]
[1770772107388,11.95327818,83.398,83.351,158.2]
[1770772107687,10.7987,83.397,83.36,2.94336838]
[1770772108480,5.54255956,83.393,83.356,10.8039]
[1770772108679,5.54255956,83.393,83.351,158.2]
[1770772109187,5.54255956,83.39,83.352,10.8045]
[1770772112692,5.53341607,83.397,83.358,10.8037]
[1770772113389,10.7989,83.396,83.351,158.2]
[1770772114486,16.34134848,83.396,83.351,158.2]
[1770772115193,10.7993,83.393,83.351,158.2]
[1770772115393,16.34174848,83.393,83.351,158.2]
[1770772115795,5.54244848,83.392,83.351,158.2]
[1770772116293,10.7997,83.39,83.351,158.2]
[1770772117895,8.49109392,83.38,83.34,472.42837004]
[1770772118095,5.54772554,83.379,83.34,472.42837004]
[1770772118292,2.94336838,83.38,83.334,168.22]
[1770772118293,5.54772554,83.367,83.334,168.22]
[1770772118492,5.54772554,83.367,83.334,168.54]
[1770772119396,10.8028,83.366,83.334,168.54]
[1770772119698,10.803,83.364,83.334,168.54]
[1770772120289,5.52204979,83.363,83.334,168.54]
[1770772120892,5.52204979,83.363,83.325,169.16]
[1770772121693,10.8037,83.359,83.325,169.16]
[1770772123999,21.5981,83.395,83.325,169.16]
[1770772124000,5.51862476,83.358,83.325,169.16]
[1770772124201,5.51862476,83.358,83.313,169.94]
[1770772124397,6.42,83.398,83.3,2.94336838]
[1770772124398,5.51862476,83.349,83.3,2.94336838]
[1770772124590,5.51862476,83.349,83.301,95.72]
[1770772125798,10.8064,83.338,83.301,95.72]
[1770772126393,2.94336838,83.35,83.301,95.72]
[1770772126394,5.57514003,83.344,83.301,95.72]
[1770772127095,5.57514003,83.339,83.29,2.94336838]
[1770772127899,5.57758992,83.325,83.282,105.36]
[1770772128698,5.57758992,83.322,83.282,105.36]
[1770772129399,5.57758992,83.322,83.257,22.20767471]
[1770772129400,5.57758992,83.319,83.273,10.8147]
[1770772129791,10.8093,83.316,83.273,10.8147]
[1770772131001,10.808,83.326,83.28,13.75726838]
[1770772131299,5.57887423,83.346,83.3,2.94336838]
[1770772131503,10.8055,83.345,83.3,2.94336838]
[1770772131803,16.40653433,83.345,83.3,2.94336838]
[1770772132204,16.40653433,83.345,83.293,10.8121]
[1770772132700,10.8058,83.343,83.293,10.8121]
[1770772132903,10.8058,83.343,83.299,10.8114]
[1770772133104,10.8061,83.34,83.299,10.8114]
[1770772133905,16.21077622,83.34,83.299,10.8114]
[1770772135005,5.40467622,83.34,83.305,10.8106]
[1770772137207,5.40467622,83.34,83.297,10.8116]
[1770772138404,5.40467622,83.34,83.3,2.94336838]
[1770772138610,10.8063,83.339,83.3,2.94336838]
[1770772140306,16.2065547,83.327,83.29,2.94336838]
[1770772140510,5.3987547,83.326,83.27,49.94336838]
[1770772140811,5.3987547,83.319,83.27,2.94336838]
[1770772141110,5.3987547,83.319,83.27,2.95249404]
[1770772141605,5.3987547,83.319,83.242,47.0]
[1770772141606,5.3987547,83.309,83.26,2.95249404]
[1770772142311,10.811,83.302,83.26,2.95249404]
[1770772144012,5.40144488,83.332,83.29,2.95249404]
[1770772145601,10.8079,83.326,83.28,2.95249404]
[1770772146013,5.40144488,83.332,83.29,2.95249404]
[1770772146205,8.59992472,83.367,83.3,2.95249404]
[1770772146206,10.8059,83.342,83.3,2.95249404]
[1770772147710,10.8059,83.342,83.301,10.8112]
[1770772149713,5.44145603,83.341,83.301,10.8112]
[1770772149913,5.44260726,83.338,83.301,10.8112]
[1770772150815,5.44260726,83.338,83.283,108.9]
[1770772150816,5.44260726,83.338,83.294,10.812]
[1770772152511,6.42,83.35,83.31,2.95249404]
[1770772153117,6.42,83.35,83.313,10.8096]
[1770772154610,6.42,83.35,83.32,2.95249404]
[1770772159812,5.61123758,83.349,83.299,139.12]
[1770772160113,5.61123758,83.349,83.281,2.0884908]
[1770772160114,5.61123758,83.349,83.31,2.95249404]
[1770772160713,5.61123758,83.349,83.32,10.8087]
[1770772168625,5.61123758,83.349,83.311,10.8098]
[1770772171522,6.42,83.35,83.329,10.8075]
[1770772171823,5.56950193,83.349,83.32,2.95249404]
[1770772172126,5.56950193,83.349,83.31,2.95249404]
[1770772172316,6.42,83.35,83.32,2.95249404]
[1770772172921,8.6034673,83.392,83.304,47.0]
[1770772172922,5.56950193,83.375,83.33,2.95249404]
[1770772173823,5.56950193,83.375,83.333,10.807]
[1770772174822,5.59563266,83.372,83.333,10.807]
[1770772178920,5.59331771,83.398,83.36,2.95249404]
[1770772179524,5.59331771,83.398,83.37,2.95249404]
[1770772180030,5.59331771,83.398,83.36,13.75589404]
[1770772182233,5.59331771,83.398,83.34,2.95249404]
[1770772182627,5.59331771,83.398,83.35,2.95249404]
[1770772182824,5.60063511,83.392,83.35,2.95249404]
[1770772184735,5.55118736,83.382,83.34,2.95249404]
[1770772184936,5.55118736,83.382,83.33,2.95249404]
[1770772185234,5.55118736,83.373,83.33,2.95249404]
[1770772185438,5.55118736,83.373,83.326,10.8078]
[1770772186041,5.55118736,83.373,83.33,2.95249404]
[1770772186840,10.8022,83.37,83.33,2.95249404]
[1770772188240,16.38453125,83.37,83.33,2.95249404]
[1770772188641,5.58233125,83.369,83.33,2.95249404]
[1770772193247,5.58233125,83.369,83.334,10.8069]
[1770772193441,5.60214018,83.38,83.34,2.95249404]
[1770772193642,5.60214018,83.391,83.35,2.95249404]
[1770772195148,5.60214018,83.391,83.36,2.95249404]
[1770772199346,5.60214018,83.391,83.35,2.95249404]
[1770772199954,5.61940242,83.388,83.347,10.8051]
[1770772200855,5.61940242,83.388,83.351,10.8046]
[1770772205249,5.5845651,83.4,83.363,10.8031]
[1770772206961,11.18787413,83.442,83.333,22.20767471]
[1770772206962,5.55406758,83.413,83.372,10.8019]
[1770772207654,5.55406758,83.411,83.372,10.8019]
[1770772207954,5.55406758,83.411,83.366,10.8027]
[1770772208854,5.55070664,83.408,83.366,10.8027]
[1770772213747,5.46697003,83.406,83.36,2.94657026]
[1770772213950,5.46697003,83.406,83.358,10.8037]
[1770772214349,5.46611292,83.396,83.358,10.8037]
[1770772217753,5.46611292,83.396,83.35,2.94657026]
[1770772218167,5.46826576,83.389,83.33,49.94657026]
[1770772218362,5.46826576,83.381,83.336,10.8065]
[1770772219765,5.46826576,83.363,83.31,2.94657026]
[1770772220070,5.42011087,83.359,83.31,2.94657026]
[1770772220771,5.42011087,83.358,83.313,10.8096]
[1770772221773,2.94964194,83.35,83.306,10.8104]
[1770772221958,5.33120954,83.349,83.306,10.8104]
[1770772222560,10.8055,83.345,83.303,10.8108]
[1770772222759,10.8055,83.345,83.3,2.94964194]
[1770772222760,5.33120954,83.344,83.29,17.86608655]
[1770772223267,5.33120954,83.344,83.297,14.91644461]
[1770772223669,5.33120954,83.344,83.3,2.94964194]
[1770772223976,5.33120954,83.344,83.302,10.811]
[1770772224270,5.33120954,83.344,83.3,2.94964194]
[1770772226070,5.37433476,83.339,83.295,10.8119]
[1770772227761,5.37433476,83.338,83.295,10.8119]
[1770772228871,10.8054,83.346,83.301,10.811]
[1770772229077,16.17623398,83.346,83.301,10.811]
[1770772229575,5.37083398,83.346,83.301,10.811]
[1770772229771,5.37083398,83.346,83.31,2.94964194]
[1770772231269,5.37083398,83.346,83.301,10.811]
[1770772231974,5.37083398,83.346,83.3,2.94964194]
[1770772232177,5.37083398,83.346,83.294,10.812]
[1770772232178,5.37646715,83.339,83.294,10.812]
[1770772234371,2.94964194,83.35,83.29,2.94964194]
[1770772234372,5.36756018,83.334,83.29,2.94964194]
[1770772237370,5.36756018,83.334,83.291,10.8125]
[1770772241577,5.3809297,83.332,83.291,10.8125]
[1770772243483,5.37813891,83.33,83.291,10.8125]
[1770772243781,5.37813891,83.33,83.285,10.8132]
[1770772244685,10.8076,83.329,83.285,10.8132]
[1770772244878,16.18395657,83.329,83.29,2.94964194]
[1770772245077,5.37635657,83.328,83.29,2.94964194]
[1770772246584,5.37635657,83.328,83.285,10.8132]
[1770772248182,5.38933809,83.322,83.279,10.814]
[1770772249180,5.38933809,83.319,83.279,10.814]
[1770772250686,5.37644759,83.318,83.279,10.814]
[1770772250888,5.37644759,83.318,83.271,10.815]
[1770772251386,5.37644304,83.299,83.269,171.4]
[1770772251586,5.37644304,83.299,83.231,21.6404]
[1770772251587,5.37644304,83.299,83.25,2.94964194]
[1770772251780,5.36240466,83.31,83.25,2.94964194]
[1770772252079,16.17260466,83.309,83.26,2.94964194]
[1770772252286,5.36240466,83.308,83.26,2.94964194]
[1770772252490,5.36240466,83.308,83.259,172.6]
[1770772252983,10.8106,83.306,83.265,10.8158]
[1770772253286,5.36240466,83.305,83.265,10.8158]
[1770772253482,5.36240466,83.319,83.27,2.94964194]
[1770772254086,5.36240466,83.319,83.271,174.34]
[1770772254684,10.8095,83.314,83.274,10.8146]
[1770772255080,5.36531079,83.313,83.274,10.8146]
[1770772255687,10.8099,83.311,83.271,174.34]
[1770772257395,16.21502256,83.306,83.271,174.34]
[1770772258688,10.8106,83.306,83.271,174.34]
[1770772259788,10.8097,83.313,83.271,10.815]
[1770772260088,10.8097,83.313,83.272,179.32]
[1770772260281,5.39043939,83.328,83.28,2.94964194]
[1770772260489,10.8088,83.32,83.29,2.94964194]
[1770772261789,10.8088,83.32,83.281,10.8137]
[1770772264898,5.39043939,83.328,83.29,2.95173927]
[1770772265697,10.8075,83.33,83.29,2.95173927]
[1770772265698,5.37630461,83.325,83.29,2.95173927]
[1770772265898,5.37630461,83.325,83.289,180.8]
[1770772266699,10.8083,83.324,83.289,180.8]
[1770772266899,5.37612511,83.323,83.289,180.8]
[1770772268995,10.8091,83.317,83.289,180.8]
[1770772273402,5.37586443,83.316,83.28,2.95173927]
[1770772273591,5.37586443,83.313,83.282,183.12]
[1770772273791,5.37586443,83.313,83.281,183.22]
[1770772274709,10.81,83.311,83.281,183.22]
[1770772275000,16.18964633,83.311,83.281,183.22]
[1770772275506,16.18964633,83.311,83.265,47.0]
[1770772275507,16.19034633,83.305,83.266,10.8157]
[1770772275703,16.19034633,83.305,83.266,194.6157]
[1770772275905,16.19034633,83.305,83.267,184.08]
[1770772276499,5.38044576,83.292,83.267,184.08]
[1770772276704,5.38044576,83.292,83.252,185.1]
[1770772277803,5.38044576,83.309,83.26,2.95173927]
[1770772278400,11.18319068,83.339,83.27,2.95173927]
[1770772278401,5.32604219,83.323,83.27,2.95173927]
[1770772278597,2.95173927,83.34,83.28,2.95173927]
[1770772278792,5.32604219,83.339,83.28,2.95173927]
[1770772278997,10.8093,83.316,83.28,2.95173927]
[1770772279803,10.8093,83.316,83.281,185.94]
[1770772282405,10.8093,83.316,83.276,186.6]
[1770772282608,10.8093,83.316,83.274,10.8146]
[1770772282609,10.8093,83.316,83.275,186.68]
[1770772283212,10.8093,83.316,83.274,10.8146]
[1770772283405,10.8093,83.316,83.275,186.88]
[1770772284510,10.8093,83.316,83.275,187.1]
[1770772284710,5.42473753,83.319,83.28,2.95173927]
[1770772289727,10.8092,83.317,83.28,2.95173927]
[1770772289926,5.41653405,83.316,83.28,2.95173927]
[1770772290629,5.41653405,83.314,83.274,10.8146]
[1770772293822,5.41653405,83.314,83.28,2.95173927]
[1770772296025,5.39226733,83.31,83.27,2.95173927]
[1770772296623,2.95173927,83.32,83.262,190.04]
[1770772296624,5.39226733,83.307,83.262,190.04]
[1770772297233,5.39226733,83.307,83.27,2.95173927]